Cogmind - Beta 17 @@@ ROGUE MODE // 2026.07.20 @ 15:38:18 Player: blbr-01 Result: Destroyed by D-53 Grenadier with Mini Grenade Launcher Performance ------------- Evolutions (0) 0 Regions Visited (2) 400 Robots Destroyed (13) 65 Value Destroyed (421) 421 Prototype IDs (0) 0 Alien Tech Used (0) 0 Bonus (0) 0 TOTAL SCORE: 886 Bonus ------- None Cogmind --------- Core Integrity 0/250 Matter 200/300 Energy 100/100 System Corruption 0% Temperature Cool (0) Movement Core (50) Location -10/Mines Parts ------- > --- POWER (1) -------- (None) > --- PROPULSION (2) --- (None) > --- UTILITY (2) ------ (None) > --- WEAPON (2) ------- (None) > --- INVENTORY (5) ---- Aluminum Leg Wheel Large Storage Unit Small Laser Hammer Peak State ------------ > --- POWER ------------ Ion Engine > --- PROPULSION ------- Aluminum Leg Aluminum Leg > --- UTILITY ---------- Small Storage Unit Large Storage Unit > --- WEAPON ----------- Small Laser Assault Rifle > --- INVENTORY -------- Ion Engine Light Ion Engine Aluminum Leg Aluminum Leg Wheel Wheel Large Storage Unit Large Storage Unit Grenade Launcher Hammer [Rating: 8] Favorites ----------- Power Ion Engine Engine Ion Engine Propulsion Aluminum Leg Leg Aluminum Leg Utility Small Storage Unit Storage Small Storage Unit Weapon Assault Rifle Energy Gun Small Laser Ballistic Gun Assault Rifle Launcher Grenade Launcher Special Weapon Mining Laser Build | -11 -10 -10 ------- Run | Yrd Mat Min Slots Evolved . | . . . Power . | . . . Propulsion . | . . . Utility . | . . . Weapon . | . . . Parts Attached 14 | 6 8 . Power 2 | 1 1 . Engine 2 | 1 1 . Core . | . . . Reactor . | . . . Propulsion 5 | 2 3 . Treads . | . . . Leg 5 | 2 3 . Wheel . | . . . Hover . | . . . Flight . | . . . Utility 2 | 1 1 . Device . | . . . Storage 2 | 1 1 . Processor . | . . . Hackware . | . . . Protection . | . . . Artifact . | . . . Weapon 5 | 2 3 . Energy Gun 1 | . 1 . Energy Cannon . | . . . Ballistic Gun 2 | 2 . . Ballistic Cannon . | . . . Launcher 1 | . 1 . Special Weapon 1 | . 1 . Impact Weapon . | . . . Slashing Weapon . | . . . Piercing Weapon . | . . . Special Melee Weapon . | . . . Unidentified Prototypes . | . . . Parts Lost 3 | . 2 1 Power 1 | . 1 . Propulsion 1 | . . 1 Utility . | . . . Weapon 1 | . 1 . Highest Loss Streak 2 | . 2 1 To Critical Strikes . | . . . Average Backups 9 | 2 8 12 Power 1 | . 1 1 Propulsion 3 | 1 3 4 Utility 1 | . 1 2 Weapon 2 | . 1 2 Tool/Special . | . . . Unused Backups 10 | . 1 9 Power 3 | . 1 2 Propulsion 3 | . . 3 Utility 3 | . . 3 Weapon 1 | . . 1 Tool/Special . | . . . Average Slot Usage (%) 96 | . 95 97 Engine 13 | . 13 13 Leg 27 | . 28 27 Storage 25 | . 24 27 Energy Gun 6 | . 11 . Ballistic Gun 8 | . 15 . Launcher 6 | . . 13 Special Weapon 6 | . . 13 Peak Build Rating 8 | 6 8 8 Average Rating 7 | 4 7 7 On Entrance 4 | . 6 8 Avg Prop Armor Cover (%) . | . . . Naked Turns 13 | . . 13 Heaviest Build 34 | 13 34 34 Greatest Support 20 | 20 20 20 Greatest Overweight (x) 1 | . 1 1 Average Overweight (x) . | . . . Largest Inventory Capacity 15 | 8 15 15 Average Capacity 13 | 6 13 14 Most Carried 13 | 4 13 13 Average Carried 9 | 2 8 12 Final Capacity 15 | 8 15 5 Final Carried 13 | 4 13 5 Class Distribution -------------------- 100% | Mutant Dominant Class ---------------- Mutant | -10/Materials Mutant | -10/Mines Resources | -11 -10 -10 ----------- Run | Yrd Mat Min Matter Collected 427 | 204 198 25 Remotely . | . . . Salvage Created 391 | . 280 111 Parts 23 | . 16 7 Haulers Intercepted . | . . . Recyclers Shooed . | . . . Parts Field Recycled . | . . . Retrieved Matter . | . . . Parts Self-Destructed . | . . . Prevented . | . . . Parts Restored . | . . . Kills | -11 -10 -10 ------- Run | Yrd Mat Min Combat Hostiles Destroyed 11 | . 7 4 Guns 7 | . 7 . AOE 4 | . . 4 Classes Destroyed 3 | . 1 2 Worker 1 | . . 1 Tunneler 1 | . . 1 Grunt 11 | . 7 4 Best Kill Streak 4 | . 3 4 Combat Bots Only 3 | . 3 2 Max Kills in Single Turn 2 | . 1 2 Gunslinging . | . . . Exploded 1 | . . 1 Melee . | . . . Uniques/NPCs Destroyed . | . . . Combat | -11 -10 -10 -------- Run | Yrd Mat Min Hostile Shots Fired 74 | . 56 18 Missed 14 | . 11 3 Hits 60 | . 45 15 Projectile 60 | . 45 15 AOE 6 | . . 6 Damage Taken 984 | . 568 416 Core 260 | . 92 168 Absorbed by Shields . | . . . Core Remaining (%) 100 | 100 . . Volleys Fired 39 | . 27 12 Largest 2 | . 2 2 Hottest 130 | . 60 130 Shots Fired 66 | . 53 13 Gun 53 | . 53 . Cannon . | . . . Launcher 11 | . . 11 Special 2 | . . 2 Kinetic 38 | . 38 . Thermal 17 | . 15 2 Explosive 11 | . . 11 Electromagnetic . | . . . Robot Hit Streak 10 | . 10 2 Robot Miss Streak 3 | . 3 3 Penetration Max . | . . . Secondary Targets 1 | . 1 . Max Gunslinging Chain 1 | . 1 . Shots Hit Robots 40 | . 36 4 Core Hits 28 | . 16 12 Critical Kills . | . . . Critical Parts Destroyed . | . . . Critical Strikes . | . . . Melee Attacks . | . . . Impact . | . . . Slashing . | . . . Piercing . | . . . Sneak Attacks . | . . . Combat Hostiles . | . . . Follow-up Attacks . | . . . Damage Inflicted 801 | . 405 396 Guns 405 | . 405 . Cannons . | . . . Explosions 396 | . . 396 Melee . | . . . Ramming . | . . . Kinetic 285 | . 285 . Thermal 120 | . 120 . Explosive 396 | . . 396 Electromagnetic . | . . . Impact . | . . . Slashing . | . . . Piercing . | . . . Highest Corruption . | . . . Average Corruption . | . . . Corruption Purged . | . . . Corruption Blocked . | . . . Overload Shots . | . . . Overflow Damage 6 | . . 6 Projectiles . | . . . Explosions 6 | . . 6 Melee . | . . . Knockbacks . | . . . Impact . | . . . Kinetic . | . . . Secondary . | . . . Self-Inflicted Damage 62 | . . 62 Shots 2 | . . 2 Rammed . | . . . Targets Rammed . | . . . Kicked . | . . . Crushed . | . . . Highest Temperature 96 | . 96 30 Average Temperature 28 | . 35 9 Received Heat Transfer 390 | . 315 75 Siege Activations . | . . . Martial Activations . | . . . Shielding Activations . | . . . Robots Disrupted . | . . . Combat Hostiles . | . . . Robots Corrupted . | . . . Combat Hostiles . | . . . Parts Fried . | . . . Impact Corruptions . | . . . Robots Melted . | . . . Combat Hostiles . | . . . Parts Melted . | . . . Heat Transferred 275 | . 275 . Parts Sabotaged . | . . . Parts Stolen . | . . . Parts Stripped . | . . . Power Chain Reactions . | . . . Alert | -11 -10 -10 ------- Run | Yrd Mat Min Maximum Alert Level . | . . . Low Security (%) 100 | 100 100 100 Level 1 . | . . . Level 2 . | . . . Level 3 . | . . . Level 4 . | . . . Level 5 . | . . . High Security . | . . . Max Security . | . . . Peak Influence 93 | . 60 93 Initial . | . . . Average 25 | . 15 44 Influence Increases 333 | . 160 173 Destroy 0b10 Robot/C 220 | . 140 80 Destroy 0b10 Robot/NC 10 | . . 10 Destroy Leader 40 | . 20 20 Destroy Structure 63 | . . 63 Influence Decreases 330 | . 160 170 Time Decay 300 | . 140 160 Lost Part 30 | . 20 10 Squads Dispatched 2 | . 2 . Investigation 2 | . 2 . Extermination . | . . . Reinforcement . | . . . Assault . | . . . Garrison . | . . . Intercept . | . . . Searches Triggered . | . . . Construction Impeded . | . . . Haulers Reinforced . | . . . Active Scanning Responses . | . . . Cargo Convoy Interrupts . | . . . Stealth | -11 -10 -10 --------- Run | Yrd Mat Min Distress Signals . | . . . Communications Jammed . | . . . Distress Signals . | . . . Times Spotted 16 | . 10 6 Peak Tracking Total 3 | . 3 3 Tactical Retreats . | . . . Traps | -11 -10 -10 ------- Run | Yrd Mat Min Traps Triggered 1 | . 1 . Indirectly . | . . . Trap Hack Attempts . | . . . Triggered . | . . . Disarmed . | . . . Reprogrammed . | . . . Reused . | . . . Traps Extracted . | . . . Installed . | . . . Triggered . | . . . Machines | -11 -10 -10 ---------- Run | Yrd Mat Min Machines Disabled . | . . . Max in Single Turn . | . . . Machines Repaired . | . . . Machines Dismantled . | . . . Machines Sabotaged . | . . . Overloaded Fab Kills . | . . . Hacking | -11 -10 -10 --------- Run | Yrd Mat Min Machines Accessed 3 | . 3 . Terminals 3 | . 3 . Fabricators . | . . . Repair Stations . | . . . Recycling Units . | . . . Scanalyzers . | . . . Garrison Access . | . . . Total Hacks 7 | . 7 . Successful 2 | . 2 . Failed 5 | . 5 . Catastrophic 1 | . 1 . Database Lockouts . | . . . Manual . | . . . Terminals 7 | . 7 . Fabricators . | . . . Repair Stations . | . . . Recycling Units . | . . . Scanalyzers . | . . . Garrison Access . | . . . Terminal Hacks 2 | . 2 . Alert Level 1 | . 1 . Locate Traps 1 | . 1 . Fabricator Hacks . | . . . Repair Station Hacks . | . . . Recycling Unit Hacks . | . . . Scanalyzer . | . . . Garrison Access Hacks . | . . . Unauthorized Hacks . | . . . Terminals . | . . . Fabricators . | . . . Repair Stations . | . . . Recycling Units . | . . . Scanalyzers . | . . . Garrison Access . | . . . Data Cores Recovered . | . . . Used . | . . . Hacking Detections 2 | . 2 . Full Trace Events . | . . . Feedback Events . | . . . Feedback Blocked . | . . . Robot Schematics Acquired . | . . . Robots Built . | . . . Authchips . | . . . Time . | . . . Total Robot Build Rating . | . . . Part Schematics Acquired . | . . . Parts Built . | . . . Authchips . | . . . Time . | . . . Total Part Build Rating . | . . . Part Studies Acquired . | . . . Parts Repaired . | . . . Time . | . . . Parts Recycled . | . . . Recycled Matter . | . . . Retrieved Matter . | . . . Retrieved Components . | . . . Parts Scanalyzed . | . . . Part Schematics Acquired . | . . . Parts Damaged . | . . . Bothacking | -11 -10 -10 ------------ Run | Yrd Mat Min Used RIF Installer . | . . . Robots Hacked . | . . . Non-combat . | . . . Combat . | . . . Robot Hacks Applied . | . . . Relay Couplers Released . | . . . Fabnet Peak Effective % . | . . . Robots Rewired . | . . . Allies Hacked . | . . . Hacks Repelled . | . . . Allies | -11 -10 -10 -------- Run | Yrd Mat Min Total Allies . | . . . Largest Group . | . . . Highest-Rated Group . | . . . Highest-Rated Ally . | . . . Total Orders . | . . . Ally Attacks . | . . . Total Damage . | . . . Kills . | . . . Allies Corrupted . | . . . Allies Melted . | . . . Intel | -11 -10 -10 ------- Run | Yrd Mat Min Active Infowar (turns) . | . . . Robot Analysis Total . | . . . Derelict Logs Recovered 1 | . . 1 Drone Launches . | . . . Drone Recoveries . | . . . Exploration | -11 -10 -10 ------------- Run | Yrd Mat Min Turns Passed 824 | 71 426 327 Spaces Moved 409 | 51 188 170 Core 23 | 3 . 20 Treads . | . . . Legs 386 | 48 188 150 Wheels . | . . . Hover . | . . . Flight . | . . . Fastest Speed 50 | 50 120 50 Average Speed 165 | 115 171 173 Slowest Speed 190 | 120 190 190 Overloaded Moves . | . . . Propulsion Burnouts . | . . . Robots Hopped . | . . . Potential Cave-ins . | . . . Cave-ins Triggered . | . . . Exploration Rate (%) 21 | 4 21 38 Regions Visited 2 Branch Regions 1 Pre-discovered Areas 1 | . . 1 Known Exits Taken . | . . . Unknown Exits Taken 2 | 1 1 . Scrap Searched . | . . . Spaces Dug 2 | . . 2 Terrain Destroyed 79 | . . 79 Melee . | . . . Projectile 2 | . . 2 AOE 77 | . . 77 Terrain Rammed . | . . . Walls Destroyed . | . . . Machines Disabled . | . . . Actions | -11 -10 -10 --------- Run | Yrd Mat Min Total 484 | 60 239 185 Wait 7 | . 4 3 Move 407 | 50 187 170 Hop . | . . . Pick Up 14 | 4 10 . Fast Attach 8 | 6 2 . Attach 2 | . 2 . Detach . | . . . Swap 4 | . 4 . Drop 3 | . 3 . Fire 39 | . 27 12 Melee . | . . . Ram . | . . . Kick . | . . . Crush . | . . . Escape Stasis . | . . . Rewire . | . . . Trap . | . . . Miscellaneous . | . . . Route ------- -11/Scrapyard -10/Materials -10/Mines History --------- Turn | Location | Event 6 | -11/Scrapyard | Discovered new exit (range 16) 72 | -11/Scrapyard | Entered Materials 314 | -10/Materials | Build established: Mutant 387 | -10/Materials | Discovered new exit (range 9) 498 | -10/Materials | Entered Mines 553 | -10/Mines | Core integrity fell below 50% 785 | -10/Mines | Assembled infested the area 790 | -10/Mines | Assisted by a Guerilla fighting off Assembled 812 | -10/Mines | Released all parts (6) 815 | -10/Mines | Core integrity fell below 20% 825 | -10/Mines | Destroyed by D-53 Grenadier with Mini Grenade Launcher Last Messages --------------- 00805_ C-45 Heavy ARC bursts open, deploying its payload. 00805_ D-53 Grenadier unfolds itself. 00805_ K-01 Serf collects debris. 00810_ K-01 Serf destroyed. 00810_ T-07 Excavator destroyed. 00812_ Aluminum Leg destroyed. 00812_ Released Grenade Launcher. 00812_ Released Lrg. Storage Unit. 00812_ Released Sml. Storage Unit. 00812_ Released Ion Engine. 00812_ Released Aluminum Leg. 00812_ Released Mining Laser. 00813_ The unstable cave ceiling collapses. 00813_ Mining Laser crushed. 00823_ NE-BPE(h): "I'll hold them off! Go on ahead or try to find another way!" 00823_ HV Slug penetrates G-34 Mercenary. 00823_ G-34 Mercenary suffers critical hit (Destroy). 00823_ G-34 Mercenary destroyed. Map ----- +----------------------------------------------------+ | # #???????????????????????????????????????????? | | #???????????????????????????????????????????? | | ##???????????????????????????????????????????? | | #????????????????????????????????????????????? | | ##???????????????????????????????????????????? | | ###?????????????????????????????????????????? | | ##?#??????????????????????????????#???????? | | # ###??????????????????????????## ???????? | | # ##????????????????????????## ???????? | | = #### #???????????????????#### ???????? | | ### #?##???????##;#???????## ??????## | | ## ##????????## ##??????# #??????# | | # #???????## ##?????# """ ##?????# | | ##??????## ####### """ ####??# | | # # # #??###### """ #### | | "### ### #### * #????# | | # "% #### % #?????# # | | ## "### ## ##= ##??????# | | ### ###### ## ### ##???????## | | ## ###########?# ##?????????### | | #????????# #????####????## | | #????????# #???## ##????# # # | | = ### #?#####??# #??## ##???# # ### | | = = ## ### #### #### ##### | | *!! ## ## h t # ##### | | ! |! * ### d @ k #???? | | %= #=! ##?#### uk ### ## #???? | | #= = #?????# ##?#####"### #???? | | ## #?????# ##??????###?## ###???? | | ?# # ##????# ## ###????????????###?????? | | ## #####????# ###### #??????????????????????? | | # #????????# #????# #??????????????????????? | | # ###??????## ##????# ??????????????????????? | | ##??????####?????####?????????????????????? | | ##???????????????????????????????????????? | | #???????????????????????????????????????? | | # #???????????????????????????????????????? | | #### ?????????????????????????????????? | | ???## ########????????????????????????????????? | | ????? #???????????????????????????????????????? | | ?????# ##???????????????????????????????????????? | | ??????###????????????????????????????????????????? | | ?????????????????????????????????????????????????? | | ?????????????????????????????????????????????????? | | ?????????????????????????????????????????????????? | | ?????????????????????????????????????????????????? | | ?????????????????????????????????????????????????? | | ?????????????????????????????????????????????????? | | ?????????????????????????????????????????????????? | | ?????????????????????????????????????????????????? | +----------------------------------------------------+ Best States ------------- Heat Dissipation 25 Energy Generation 10 Energy Capacity 250 Matter Stores 300 Matter Capacity 300 Sight Range 16 Terrain Scan Density 10 Evasion (%) 55 Item Schematics ----------------- None Robot Schematics ------------------ None Fabricated ------------ Nothing Repaired ---------- Nothing Studied --------- None Alien Tech Used ----------------- None Achievements -------------- None Challenges ------------ None Game ------ Seed ChaosWarpReprisal Manual? 0 Play Time 00:12:43 Cumulative 11.0 hours Start 2026.07.20 @ 15:22:09 End 2026.07.20 @ 15:38:18 Sessions 3 Manual Loads 0 Difficulty Rogue Special Mode None Game No. 19 Rogue 19 Adventurer 0 Explorer 0 Win Type - Total 0 Types 0/0/0/0/0/0/0/0/0/0 Lore% 11 Gallery% 9 Achievement% 10 Wizard Run 0 Options --------- Layout 1 ASCII 0 Keyboard 0 Movement Vi Keybinds 0 Fullscreen 1 Font 20/SmallcapsGlow Map View 56x47 Zoom Use 0% Tactical HUD 1 Map Filters NONE Filters NONE Steam 0 RUN: 49330e55-b804-4667-b305-9f88a9601caa